[Event "*** Titled Tuesday 3|2 Blitz"]
[Site "Chess.com"]
[Date "2016.07.05"]
[Round "7"]
[White "Astaneh"]
[Black "Evgeny_Levin"]
[Result "0-1"]
[WhiteElo "2460"]
[BlackElo "2641"]
[TimeControl "180+2"]
[EndTime "18:27:09 PDT"]
[Termination "Evgeny_Levin won by resignation"]

1. d4 {[%clk 0:03:01.9]} 1... Nf6 {[%clk 0:03:00.2]} 2. Nf3 {[%clk 0:03:03.2]}
2... e6 {[%clk 0:03:01]} 3. g3 {[%clk 0:03:03.9]} 3... b6 {[%clk 0:03:02]} 4.
Bg2 {[%clk 0:03:05.6]} 4... Bb7 {[%clk 0:03:02.9]} 5. O-O {[%clk 0:03:07.3]}
5... Be7 {[%clk 0:03:03.8]} 6. b3 {[%clk 0:03:08.3]} 6... O-O {[%clk 0:03:04.2]}
7. Bb2 {[%clk 0:03:09.9]} 7... c5 {[%clk 0:03:05.2]} 8. c4 {[%clk 0:03:09.9]}
8... cxd4 {[%clk 0:02:47.2]} 9. Nxd4 {[%clk 0:03:10.7]} 9... Bxg2 {[%clk
0:02:45.6]} 10. Kxg2 {[%clk 0:03:12.6]} 10... Nc6 {[%clk 0:02:36.6]} 11. Nxc6
{[%clk 0:03:12.1]} 11... dxc6 {[%clk 0:02:38.5]} 12. Qc2 {[%clk 0:03:13.2]}
12... Qc7 {[%clk 0:02:38]} 13. Nd2 {[%clk 0:03:13.5]} 13... Rfd8 {[%clk
0:02:38.5]} 14. Rad1 {[%clk 0:03:14]} 14... Rd7 {[%clk 0:02:38.5]} 15. Nf3
{[%clk 0:03:14.2]} 15... Rad8 {[%clk 0:02:27.7]} 16. Ne5 {[%clk 0:03:09.9]}
16... Rd6 {[%clk 0:02:29]} 17. Nd3 {[%clk 0:03:06.1]} 17... Nd7 {[%clk
0:02:17.3]} 18. e4 {[%clk 0:03:03.7]} 18... f6 {[%clk 0:02:05.2]} 19. f4 {[%clk
0:02:53.3]} 19... Nc5 {[%clk 0:02:02.9]} 20. Nxc5 {[%clk 0:02:50.3]} 20... Rxd1
{[%clk 0:02:03.7]} 21. Rxd1 {[%clk 0:02:30.8]} 21... Bxc5 {[%clk 0:02:04.6]} 22.
Rd3 {[%clk 0:02:25.5]} 22... Rxd3 {[%clk 0:01:59.2]} 23. Qxd3 {[%clk 0:02:27.4]}
23... Qd6 {[%clk 0:02:00.6]} 24. Qxd6 {[%clk 0:02:27.7]} 24... Bxd6 {[%clk
0:02:02.5]} 25. Kf3 {[%clk 0:02:12.8]} 25... Kf7 {[%clk 0:02:02.8]} 26. e5
{[%clk 0:01:57.4]} 26... fxe5 {[%clk 0:02:00.7]} 27. Bxe5 {[%clk 0:01:50.8]}
27... Bxe5 {[%clk 0:01:55.5]} 28. fxe5 {[%clk 0:01:52.7]} 28... Kg6 {[%clk
0:01:53.2]} 29. Kf4 {[%clk 0:01:42]} 29... Kh5 {[%clk 0:01:54.6]} 30. h3 {[%clk
0:01:35]} 30... c5 {[%clk 0:01:49]} 31. a3 {[%clk 0:01:34.3]} 31... a5 {[%clk
0:01:44.7]} 32. a4 {[%clk 0:01:14.3]} 32... h6 {[%clk 0:01:40.8]} 33. h4 {[%clk
0:00:54.2]} 33... g6 {[%clk 0:01:19.6]} 34. Kf3 {[%clk 0:00:35.1]} 34... g5
{[%clk 0:01:20.7]} 35. hxg5 {[%clk 0:00:35.2]} 35... Kxg5 {[%clk 0:01:22.6]} 36.
g4 {[%clk 0:00:32.9]} 36... h5 {[%clk 0:01:19.6]} 37. gxh5 {[%clk 0:00:33.3]}
37... Kxh5 {[%clk 0:01:21.5]} 38. Kf4 {[%clk 0:00:10.2]} 38... Kh4 {[%clk
0:01:22.4]} 39. Kf3 {[%clk 0:00:08.8]} 39... Kg5 {[%clk 0:01:22.7]} 40. Ke4
{[%clk 0:00:09]} 40... Kg4 {[%clk 0:01:23.9]} 0-1

[Event "*** Titled Tuesday 3|2 Blitz"]
[Site "Chess.com"]
[Date "2016.07.05"]
[Round "7"]
[White "Izoria123"]
[Black "dawtonlms"]
[Result "1-0"]
[WhiteElo "2606"]
[BlackElo "2185"]
[TimeControl "180+2"]
[EndTime "18:28:13 PDT"]
[Termination "Izoria123 won by resignation"]

1. e4 {[%clk 0:03:01.9]} 1... c5 {[%clk 0:02:57.7]} 2. Nf3 {[%clk 0:03:02.6]}
2... e6 {[%clk 0:02:59]} 3. g3 {[%clk 0:03:01]} 3... d5 {[%clk 0:02:56.7]} 4.
exd5 {[%clk 0:03:01.1]} 4... exd5 {[%clk 0:02:57.7]} 5. d4 {[%clk 0:03:02.2]}
5... Nc6 {[%clk 0:02:56.1]} 6. Bg2 {[%clk 0:03:02.9]} 6... Nf6 {[%clk
0:02:56.9]} 7. O-O {[%clk 0:03:03.5]} 7... Be6 {[%clk 0:02:57.9]} 8. Be3 {[%clk
0:02:59]} 8... c4 {[%clk 0:02:58]} 9. Ne5 {[%clk 0:02:49.1]} 9... Be7 {[%clk
0:02:53.9]} 10. Nc3 {[%clk 0:02:48.3]} 10... O-O {[%clk 0:02:53.2]} 11. h3
{[%clk 0:02:41.6]} 11... Nd7 {[%clk 0:02:15.8]} 12. Nxd5 {[%clk 0:02:34.2]}
12... Ndxe5 {[%clk 0:02:15.4]} 13. dxe5 {[%clk 0:02:36.1]} 13... Nxe5 {[%clk
0:02:14]} 14. Bf4 {[%clk 0:02:35.4]} 14... Bf6 {[%clk 0:01:52.2]} 15. Re1 {[%clk
0:02:31.1]} 15... Nc6 {[%clk 0:01:45.1]} 16. Bc7 {[%clk 0:02:21.6]} 16... Qc8
{[%clk 0:01:24.6]} 17. Nxf6+ {[%clk 0:01:45.6]} 17... gxf6 {[%clk 0:01:26.1]}
18. Bf4 {[%clk 0:01:46.1]} 18... Bxh3 {[%clk 0:01:25.8]} 19. Qh5 {[%clk
0:01:46.9]} 19... Bg4 {[%clk 0:01:24.4]} 20. Qh6 {[%clk 0:01:42]} 20... Qd8
{[%clk 0:00:50.7]} 21. Re4 {[%clk 0:00:50.2]} 21... Bf5 {[%clk 0:00:45.4]} 22.
Be3 {[%clk 0:00:44.8]} 22... Bg6 {[%clk 0:00:43.4]} 23. Rxc4 {[%clk 0:00:42]}
23... Ne5 {[%clk 0:00:43.3]} 24. Rd4 {[%clk 0:00:43]} 24... Qc7 {[%clk
0:00:41.2]} 25. c3 {[%clk 0:00:43.7]} 25... Rfd8 {[%clk 0:00:38.7]} 26. Rf4
{[%clk 0:00:44.1]} 26... Qe7 {[%clk 0:00:38.6]} 27. Bd4 {[%clk 0:00:44.7]} 27...
Rd6 {[%clk 0:00:34.8]} 28. Qh4 {[%clk 0:00:39.3]} 28... Rc8 {[%clk 0:00:25.6]}
29. g4 {[%clk 0:00:37.2]} 29... Nd3 {[%clk 0:00:23.2]} 30. Rxf6 {[%clk
0:00:31.8]} 30... Rxf6 {[%clk 0:00:20.7]} 31. Bxf6 {[%clk 0:00:32.9]} 31... Qe2
{[%clk 0:00:21.8]} 32. g5 {[%clk 0:00:28.6]} 32... Qh5 {[%clk 0:00:21.8]} 33.
Qxh5 {[%clk 0:00:26.5]} 33... Bxh5 {[%clk 0:00:23.7]} 34. Bxb7 {[%clk
0:00:26.3]} 34... Rb8 {[%clk 0:00:24.7]} 35. Be4 {[%clk 0:00:25.9]} 35... Nc5
{[%clk 0:00:24.6]} 36. Bd5 {[%clk 0:00:27.2]} 36... Bg4 {[%clk 0:00:24.9]} 37.
Re1 {[%clk 0:00:27.2]} 37... Be6 {[%clk 0:00:25.3]} 38. Bxe6 {[%clk 0:00:28.1]}
38... Nxe6 {[%clk 0:00:27.2]} 39. b3 {[%clk 0:00:29.2]} 39... Rc8 {[%clk
0:00:27.2]} 40. c4 {[%clk 0:00:30]} 40... Kf8 {[%clk 0:00:27.4]} 41. Re5 {[%clk
0:00:30.5]} 41... Ke8 {[%clk 0:00:28.5]} 42. Rd5 {[%clk 0:00:31.5]} 42... Nf4
{[%clk 0:00:28.5]} 43. Rd6 {[%clk 0:00:31.9]} 43... Ne2+ {[%clk 0:00:26.9]} 44.
Kf1 {[%clk 0:00:32.4]} 44... Nc3 {[%clk 0:00:28]} 45. Ra6 {[%clk 0:00:29.4]}
45... Rc7 {[%clk 0:00:25.7]} 46. Bxc3 {[%clk 0:00:30]} 1-0

[Event "*** Titled Tuesday 3|2 Blitz"]
[Site "Chess.com"]
[Date "2016.07.05"]
[Round "7"]
[White "aripov96"]
[Black "Journey_to_GrandMaster_YT"]
[Result "1-0"]
[WhiteElo "2291"]
[BlackElo "2403"]
[TimeControl "180+2"]
[EndTime "18:30:25 PDT"]
[Termination "aripov96 won by checkmate"]

1. d4 {[%clk 0:03:01.9]} 1... d6 {[%clk 0:03:00.5]} 2. e4 {[%clk 0:03:00.4]}
2... Nf6 {[%clk 0:03:01.1]} 3. Bd3 {[%clk 0:03:00.2]} 3... e5 {[%clk 0:03:01.8]}
4. c3 {[%clk 0:03:00.3]} 4... g6 {[%clk 0:03:02.3]} 5. f4 {[%clk 0:03:00.4]}
5... exd4 {[%clk 0:03:01.2]} 6. cxd4 {[%clk 0:03:01.1]} 6... c5 {[%clk
0:03:02.4]} 7. dxc5 {[%clk 0:02:57.9]} 7... d5 {[%clk 0:03:03.4]} 8. e5 {[%clk
0:02:57.6]} 8... Ng4 {[%clk 0:03:04.5]} 9. Be2 {[%clk 0:02:48.8]} 9... Bxc5
{[%clk 0:02:54]} 10. Bxg4 {[%clk 0:02:45.7]} 10... Qh4+ {[%clk 0:02:54.9]} 11.
g3 {[%clk 0:02:41.1]} 11... Qxg4 {[%clk 0:02:55.7]} 12. Qxg4 {[%clk 0:02:38.9]}
12... Bxg4 {[%clk 0:02:56.6]} 13. Nc3 {[%clk 0:02:40.1]} 13... Be6 {[%clk
0:02:47.3]} 14. Nf3 {[%clk 0:02:34.6]} 14... d4 {[%clk 0:02:34]} 15. Ne4 {[%clk
0:02:34.5]} 15... Bb6 {[%clk 0:02:20.5]} 16. Bd2 {[%clk 0:02:34.2]} 16... Nc6
{[%clk 0:02:14.5]} 17. Nfg5 {[%clk 0:02:29.9]} 17... Bf5 {[%clk 0:02:07.7]} 18.
Nd6+ {[%clk 0:02:29.8]} 18... Ke7 {[%clk 0:02:06.4]} 19. Ngxf7 {[%clk
0:02:18.6]} 19... Rhf8 {[%clk 0:02:04]} 20. Nxf5+ {[%clk 0:02:18.9]} 20... Kxf7
{[%clk 0:02:05]} 21. Nd6+ {[%clk 0:02:18.5]} 21... Ke6 {[%clk 0:02:06]} 22. Ke2
{[%clk 0:02:15.7]} 22... Bc7 {[%clk 0:02:00.9]} 23. Ne4 {[%clk 0:02:07.1]} 23...
Bb6 {[%clk 0:01:45.7]} 24. Kd3 {[%clk 0:02:03.3]} 24... h6 {[%clk 0:01:34.6]}
25. Rac1 {[%clk 0:02:02]} 25... Rad8 {[%clk 0:01:33.4]} 26. Nc5+ {[%clk
0:01:58.9]} 26... Bxc5 {[%clk 0:01:31.4]} 27. Rxc5 {[%clk 0:02:00.8]} 27... g5
{[%clk 0:01:32.1]} 28. Rhc1 {[%clk 0:01:53.3]} 28... gxf4 {[%clk 0:01:31.7]} 29.
gxf4 {[%clk 0:01:55.2]} 29... Rg8 {[%clk 0:01:28.9]} 30. Ke4 {[%clk 0:01:49.7]}
30... Rdf8 {[%clk 0:01:25.8]} 31. Rxc6+ {[%clk 0:01:46.3]} 31... bxc6 {[%clk
0:01:24.7]} 32. Rxc6+ {[%clk 0:01:48.2]} 32... Kd7 {[%clk 0:01:24.9]} 33. Rd6+
{[%clk 0:01:46.8]} 33... Kc7 {[%clk 0:01:25.7]} 34. Rxd4 {[%clk 0:01:42.8]}
34... Rg2 {[%clk 0:01:25.7]} 35. e6 {[%clk 0:01:39.1]} 35... Rxh2 {[%clk
0:01:21.8]} 36. Ba5+ {[%clk 0:01:28.1]} 36... Kc6 {[%clk 0:01:21.4]} 37. f5
{[%clk 0:01:16.9]} 37... Re2+ {[%clk 0:01:16.4]} 38. Kd3 {[%clk 0:01:11.2]}
38... Re5 {[%clk 0:01:16]} 39. Rc4+ {[%clk 0:00:49.5]} 39... Kb7 {[%clk
0:01:09.8]} 40. Rc7+ {[%clk 0:00:44.6]} 40... Ka6 {[%clk 0:01:10.6]} 41. e7
{[%clk 0:00:35]} 41... Rfxf5 {[%clk 0:01:07.3]} 42. Bc3 {[%clk 0:00:33.7]} 42...
Re6 {[%clk 0:01:04.6]} 43. Rc6+ {[%clk 0:00:34.4]} 43... Rxc6 {[%clk 0:00:58.4]}
44. e8=Q {[%clk 0:00:35.8]} 44... Rd5+ {[%clk 0:00:56.9]} 45. Ke4 {[%clk
0:00:36.2]} 45... Rdd6 {[%clk 0:00:58]} 46. Qh8 {[%clk 0:00:34.5]} 46... Re6+
{[%clk 0:00:57.5]} 47. Kd3 {[%clk 0:00:35.5]} 47... Red6+ {[%clk 0:00:56.3]} 48.
Kc2 {[%clk 0:00:36.6]} 48... Kb7 {[%clk 0:00:54.1]} 49. a4 {[%clk 0:00:36.8]}
49... Rd7 {[%clk 0:00:50.5]} 50. a5 {[%clk 0:00:36.5]} 50... a6 {[%clk
0:00:50.3]} 51. Qe5 {[%clk 0:00:36.4]} 51... Rf7 {[%clk 0:00:48.1]} 52. Qd5
{[%clk 0:00:36.2]} 52... Rc7 {[%clk 0:00:45.8]} 53. Kb3 {[%clk 0:00:36.8]} 53...
Rc8 {[%clk 0:00:40.1]} 54. Be5 {[%clk 0:00:36.1]} 54... Ka7 {[%clk 0:00:33.9]}
55. Qd7+ {[%clk 0:00:35.3]} 55... Ka8 {[%clk 0:00:34.8]} 56. Bd4 {[%clk
0:00:33.4]} 56... R8c7 {[%clk 0:00:34.9]} 57. Qd5 {[%clk 0:00:31]} 57... Kb7
{[%clk 0:00:33]} 58. Bb6 {[%clk 0:00:32.1]} 58... Rg7 {[%clk 0:00:26.3]} 59. Ka4
{[%clk 0:00:32.3]} 59... Rg4+ {[%clk 0:00:25.9]} 60. b4 {[%clk 0:00:32.8]} 60...
Rg7 {[%clk 0:00:26.1]} 61. b5 {[%clk 0:00:28.9]} 61... axb5+ {[%clk 0:00:26.6]}
62. Kb4 {[%clk 0:00:18.1]} 62... Rg6 {[%clk 0:00:21.1]} 63. Qd7+ {[%clk
0:00:18.3]} 63... Kb8 {[%clk 0:00:21.9]} 64. Kxb5 {[%clk 0:00:17.7]} 64... h5
{[%clk 0:00:16.6]} 65. Ka6 {[%clk 0:00:18.4]} 65... h4 {[%clk 0:00:10.8]} 66.
Qb7# {[%clk 0:00:18.9]} 1-0

[Event "*** Titled Tuesday 3|2 Blitz"]
[Site "Chess.com"]
[Date "2016.07.05"]
[Round "7"]
[White "IamSchrodingersCat"]
[Black "LonesomeGeorge1"]
[Result "1-0"]
[WhiteElo "2235"]
[BlackElo "2274"]
[TimeControl "180+2"]
[EndTime "18:30:33 PDT"]
[Termination "IamSchrodingersCat won by resignation"]

1. e4 {[%clk 0:03:01.9]} 1... c5 {[%clk 0:03:00.8]} 2. Nf3 {[%clk 0:03:01.8]}
2... e6 {[%clk 0:03:01.7]} 3. d4 {[%clk 0:03:02.8]} 3... cxd4 {[%clk 0:03:03.6]}
4. Nxd4 {[%clk 0:03:04]} 4... Nc6 {[%clk 0:03:05]} 5. Nc3 {[%clk 0:03:04.2]}
5... Qc7 {[%clk 0:03:04.3]} 6. Be3 {[%clk 0:03:01.2]} 6... a6 {[%clk 0:03:05]}
7. f4 {[%clk 0:03:01.3]} 7... b5 {[%clk 0:02:56.4]} 8. Qd2 {[%clk 0:02:55.3]}
8... Bb7 {[%clk 0:02:53.4]} 9. Bd3 {[%clk 0:02:53.8]} 9... Nf6 {[%clk
0:02:40.6]} 10. e5 {[%clk 0:02:44.7]} 10... b4 {[%clk 0:02:28.7]} 11. Ne4 {[%clk
0:02:22.2]} 11... Nxe4 {[%clk 0:02:22.2]} 12. Bxe4 {[%clk 0:02:22.7]} 12... Nxd4
{[%clk 0:01:54.8]} 13. Qxd4 {[%clk 0:02:24.6]} 13... Bxe4 {[%clk 0:01:51.5]} 14.
Qxe4 {[%clk 0:02:26.5]} 14... Rc8 {[%clk 0:01:52.6]} 15. O-O-O {[%clk
0:02:16.9]} 15... d5 {[%clk 0:01:48.1]} 16. exd6 {[%clk 0:02:14.4]} 16... Bxd6
{[%clk 0:01:49.2]} 17. g3 {[%clk 0:01:58.5]} 17... O-O {[%clk 0:01:48.4]} 18.
Kb1 {[%clk 0:01:57.9]} 18... Be7 {[%clk 0:01:45.4]} 19. Bd4 {[%clk 0:01:52.6]}
19... a5 {[%clk 0:01:42.5]} 20. Rd2 {[%clk 0:01:46.6]} 20... Qc4 {[%clk
0:01:37]} 21. Rhd1 {[%clk 0:01:23]} 21... a4 {[%clk 0:01:28.2]} 22. Qd3 {[%clk
0:01:20.9]} 22... Qc6 {[%clk 0:01:15.7]} 23. Be5 {[%clk 0:01:17.2]} 23... h6
{[%clk 0:00:58.5]} 24. Qd7 {[%clk 0:00:59]} 24... Bc5 {[%clk 0:00:44.1]} 25.
Qxc6 {[%clk 0:00:50.2]} 25... Rxc6 {[%clk 0:00:46]} 26. Bd4 {[%clk 0:00:37.2]}
26... Rfc8 {[%clk 0:00:44.4]} 27. Bxc5 {[%clk 0:00:36.1]} 27... Rxc5 {[%clk
0:00:46.3]} 28. Rd8+ {[%clk 0:00:36.8]} 28... Rxd8 {[%clk 0:00:45.1]} 29. Rxd8+
{[%clk 0:00:38.7]} 29... Kh7 {[%clk 0:00:47]} 30. Rd4 {[%clk 0:00:38.2]} 30...
Rb5 {[%clk 0:00:47.5]} 31. Kc1 {[%clk 0:00:34.4]} 31... Kg6 {[%clk 0:00:41.9]}
32. a3 {[%clk 0:00:27]} 32... bxa3 {[%clk 0:00:39]} 33. bxa3 {[%clk 0:00:28.9]}
33... Kf5 {[%clk 0:00:32.8]} 34. h3 {[%clk 0:00:26]} 34... h5 {[%clk 0:00:31.5]}
35. Rxa4 {[%clk 0:00:24.5]} 35... Rd5 {[%clk 0:00:17]} 36. Rb4 {[%clk
0:00:18.1]} 36... Ra5 {[%clk 0:00:15.6]} 37. a4 {[%clk 0:00:18.5]} 37... Kf6
{[%clk 0:00:15.4]} 38. Kb2 {[%clk 0:00:16.9]} 38... g5 {[%clk 0:00:15.9]} 39.
Kb3 {[%clk 0:00:15.7]} 39... gxf4 {[%clk 0:00:14.5]} 40. gxf4 {[%clk 0:00:17.6]}
40... h4 {[%clk 0:00:14.1]} 41. Rb5 {[%clk 0:00:17.6]} 41... Ra8 {[%clk
0:00:14.2]} 42. a5 {[%clk 0:00:18.1]} 42... Ke7 {[%clk 0:00:14.4]} 43. c4 {[%clk
0:00:18.8]} 43... Kd6 {[%clk 0:00:15.6]} 44. Kb4 {[%clk 0:00:20]} 44... f6
{[%clk 0:00:16.3]} 45. Rb6+ {[%clk 0:00:20.3]} 45... Kd7 {[%clk 0:00:16.5]} 46.
a6 {[%clk 0:00:20.7]} 46... e5 {[%clk 0:00:17.4]} 47. Rxf6 {[%clk 0:00:18]}
47... exf4 {[%clk 0:00:17.3]} 48. Rxf4 {[%clk 0:00:19.6]} 48... Rxa6 {[%clk
0:00:18.5]} 49. Rxh4 {[%clk 0:00:21.1]} 49... Ra1 {[%clk 0:00:19.9]} 50. Kc5
{[%clk 0:00:20.8]} 50... Rh1 {[%clk 0:00:20.2]} 51. Rh7+ {[%clk 0:00:20.9]}
51... Ke6 {[%clk 0:00:21.7]} 52. Kc6 {[%clk 0:00:21.2]} 52... Rc1 {[%clk
0:00:18.8]} 53. c5 {[%clk 0:00:22.2]} 53... Ke5 {[%clk 0:00:19.5]} 54. Kb6
{[%clk 0:00:19.6]} 54... Kd5 {[%clk 0:00:17.9]} 55. Rd7+ {[%clk 0:00:19.6]}
55... Ke6 {[%clk 0:00:19.3]} 56. Rd3 {[%clk 0:00:20.7]} 56... Rb1+ {[%clk
0:00:18.3]} 57. Kc7 {[%clk 0:00:21.3]} 57... Ke7 {[%clk 0:00:17.6]} 58. c6
{[%clk 0:00:22.1]} 58... Rc1 {[%clk 0:00:19.1]} 59. Kb7 {[%clk 0:00:22.9]} 59...
Rb1+ {[%clk 0:00:19.2]} 60. Kc8 {[%clk 0:00:23.4]} 60... Rc1 {[%clk 0:00:20.5]}
61. c7 {[%clk 0:00:24.5]} 61... Rc2 {[%clk 0:00:22.1]} 62. h4 {[%clk 0:00:25]}
62... Rh2 {[%clk 0:00:21.2]} 63. Rd5 {[%clk 0:00:20.4]} 63... Rxh4 {[%clk
0:00:20.9]} 64. Re5+ {[%clk 0:00:15.3]} 64... Kd6 {[%clk 0:00:21.5]} 65. Rg5
{[%clk 0:00:08.1]} 65... Rc4 {[%clk 0:00:15.3]} 66. Rg7 {[%clk 0:00:08.8]} 66...
Rc1 {[%clk 0:00:15.3]} 67. Kd8 {[%clk 0:00:09]} 67... Rh1 {[%clk 0:00:11.9]} 68.
Rg8 {[%clk 0:00:09.6]} 68... Rc1 {[%clk 0:00:10.7]} 69. c8=Q {[%clk 0:00:10.6]}
69... Rxc8+ {[%clk 0:00:12.6]} 70. Kxc8 {[%clk 0:00:12.3]} 1-0

[Event "*** Titled Tuesday 3|2 Blitz"]
[Site "Chess.com"]
[Date "2016.07.05"]
[Round "8"]
[White "Evgeny_Levin"]
[Black "Konavets"]
[Result "1-0"]
[WhiteElo "2654"]
[BlackElo "2516"]
[TimeControl "180+2"]
[EndTime "18:38:38 PDT"]
[Termination "Evgeny_Levin won by resignation"]

1. d4 {[%clk 0:03:01.1]} 1... Nf6 {[%clk 0:02:53.2]} 2. Nf3 {[%clk 0:03:02.5]}
2... b5 {[%clk 0:02:54]} 3. Bg5 {[%clk 0:03:01.8]} 3... Ne4 {[%clk 0:02:54.4]}
4. Bf4 {[%clk 0:03:02]} 4... Bb7 {[%clk 0:02:55.7]} 5. Nbd2 {[%clk 0:03:03]}
5... a6 {[%clk 0:02:56.6]} 6. Nxe4 {[%clk 0:02:54.8]} 6... Bxe4 {[%clk
0:02:58.5]} 7. Nd2 {[%clk 0:02:56.4]} 7... Bb7 {[%clk 0:02:59.2]} 8. e4 {[%clk
0:02:57.7]} 8... e6 {[%clk 0:02:59.7]} 9. c3 {[%clk 0:02:58.1]} 9... Be7 {[%clk
0:03:01.2]} 10. a4 {[%clk 0:02:58]} 10... b4 {[%clk 0:03:02.4]} 11. Bd3 {[%clk
0:02:55.7]} 11... d5 {[%clk 0:03:02.9]} 12. O-O {[%clk 0:02:51.7]} 12... c5
{[%clk 0:03:02.6]} 13. Qg4 {[%clk 0:02:43.4]} 13... g6 {[%clk 0:02:53.5]} 14.
exd5 {[%clk 0:02:41.3]} 14... Bxd5 {[%clk 0:02:47.8]} 15. Bh6 {[%clk 0:02:42.3]}
15... bxc3 {[%clk 0:02:41.6]} 16. bxc3 {[%clk 0:02:42.3]} 16... cxd4 {[%clk
0:02:42.6]} 17. cxd4 {[%clk 0:02:21.6]} 17... Nc6 {[%clk 0:02:41.1]} 18. Rac1
{[%clk 0:02:16.8]} 18... Bf6 {[%clk 0:02:32]} 19. Ne4 {[%clk 0:02:04.2]} 19...
Bxd4 {[%clk 0:02:27.3]} 20. Nc3 {[%clk 0:01:54.4]} 20... Bxc3 {[%clk 0:02:19.4]}
21. Rxc3 {[%clk 0:01:56.3]} 21... f5 {[%clk 0:02:15.4]} 22. Qe2 {[%clk
0:01:52.4]} 22... Kf7 {[%clk 0:02:13.9]} 23. Rfc1 {[%clk 0:01:49.1]} 23... Qh4
{[%clk 0:02:13.4]} 24. Rxc6 {[%clk 0:01:34.6]} 24... Qxh6 {[%clk 0:02:09.7]} 25.
Rc7+ {[%clk 0:01:33.3]} 25... Kf6 {[%clk 0:01:52.3]} 26. Qb2+ {[%clk 0:01:30.3]}
26... e5 {[%clk 0:01:53]} 27. R1c6+ {[%clk 0:01:05.9]} 27... Bxc6 {[%clk
0:01:32.6]} 28. Rxc6+ {[%clk 0:01:07.8]} 28... Kg5 {[%clk 0:01:34]} 29. Qxe5
{[%clk 0:01:08.5]} 29... Qh5 {[%clk 0:01:31.3]} 30. Qe3+ {[%clk 0:01:02.4]}
30... f4 {[%clk 0:01:31.2]} 31. Rc5+ {[%clk 0:01:03.1]} 31... Kf6 {[%clk
0:01:30.9]} 32. Qxf4+ {[%clk 0:01:02.1]} 1-0

[Event "*** Titled Tuesday 3|2 Blitz"]
[Site "Chess.com"]
[Date "2016.07.05"]
[Round "8"]
[White "TyIerDurden"]
[Black "wonderfultime"]
[Result "1/2-1/2"]
[WhiteElo "2455"]
[BlackElo "2660"]
[TimeControl "180+2"]
[EndTime "18:41:12 PDT"]
[Termination "Game drawn by agreement"]

1. Nf3 {[%clk 0:03:01.9]} 1... d5 {[%clk 0:03:00.7]} 2. g3 {[%clk 0:03:03.8]}
2... c6 {[%clk 0:03:01.9]} 3. Bg2 {[%clk 0:03:04.8]} 3... g6 {[%clk 0:03:03.5]}
4. O-O {[%clk 0:03:05.6]} 4... Bg7 {[%clk 0:03:05.1]} 5. d3 {[%clk 0:03:06.3]}
5... Nf6 {[%clk 0:03:06.6]} 6. Nbd2 {[%clk 0:03:06.9]} 6... O-O {[%clk
0:03:08.3]} 7. c4 {[%clk 0:03:07.3]} 7... Re8 {[%clk 0:02:58.3]} 8. cxd5 {[%clk
0:03:09.2]} 8... cxd5 {[%clk 0:02:58.3]} 9. Ne5 {[%clk 0:03:06.6]} 9... e6
{[%clk 0:02:51.4]} 10. Ndf3 {[%clk 0:03:04.3]} 10... Nfd7 {[%clk 0:02:52.4]} 11.
Nxd7 {[%clk 0:02:55.3]} 11... Bxd7 {[%clk 0:02:51.7]} 12. Rb1 {[%clk 0:02:53.6]}
12... Nc6 {[%clk 0:02:49.5]} 13. a3 {[%clk 0:02:49]} 13... Rc8 {[%clk
0:02:50.5]} 14. e4 {[%clk 0:02:46.2]} 14... dxe4 {[%clk 0:02:23]} 15. dxe4
{[%clk 0:02:43.2]} 15... Ne5 {[%clk 0:02:24.5]} 16. Nxe5 {[%clk 0:02:34.8]}
16... Bxe5 {[%clk 0:02:26.4]} 17. Bg5 {[%clk 0:02:36.7]} 17... Qxg5 {[%clk
0:02:15.7]} 18. Qxd7 {[%clk 0:02:37]} 18... Qe7 {[%clk 0:02:16.7]} 19. Qxe7
{[%clk 0:02:31]} 19... Rxe7 {[%clk 0:02:18.6]} 20. b4 {[%clk 0:02:32.9]} 20...
Bd4 {[%clk 0:02:11.7]} 21. Rfc1 {[%clk 0:02:26.4]} 21... Rec7 {[%clk 0:02:12.5]}
22. Rd1 {[%clk 0:02:21.9]} 22... e5 {[%clk 0:02:12.5]} 23. Bh3 {[%clk
0:02:19.7]} 23... Rd8 {[%clk 0:00:59.7]} 24. Rbc1 {[%clk 0:02:17.2]} 24... Rxc1
{[%clk 0:00:59.9]} 25. Rxc1 {[%clk 0:02:19.1]} 25... Bb6 {[%clk 0:01:01.8]} 26.
Rc8 {[%clk 0:02:14.6]} 26... Kf8 {[%clk 0:00:42.9]} 27. Rxd8+ {[%clk 0:02:08.9]}
27... Bxd8 {[%clk 0:00:44.8]} 28. f4 {[%clk 0:02:10.7]} 28... exf4 {[%clk
0:00:38.8]} 29. gxf4 {[%clk 0:02:12.6]} 29... Bb6+ {[%clk 0:00:40.7]} 30. Kg2
{[%clk 0:02:09.1]} 30... Be3 {[%clk 0:00:42]} 31. Kf3 {[%clk 0:02:09.8]} 31...
Bg1 {[%clk 0:00:42.1]} 32. Kg2 {[%clk 0:02:09.9]} 32... Be3 {[%clk 0:00:43.4]}
33. f5 {[%clk 0:02:04.8]} 33... Bf4 {[%clk 0:00:39.2]} 34. Bg4 {[%clk
0:02:03.3]} 34... Ke7 {[%clk 0:00:40.1]} 35. Be2 {[%clk 0:02:03.2]} 35... Kf6
{[%clk 0:00:38.4]} 36. Bc4 {[%clk 0:02:00.8]} 36... h5 {[%clk 0:00:32.1]} 37. a4
{[%clk 0:01:59.5]} 37... b6 {[%clk 0:00:32.2]} 38. h3 {[%clk 0:01:58.8]} 38...
g5 {[%clk 0:00:32.9]} 39. b5 {[%clk 0:01:57.2]} 39... g4 {[%clk 0:00:33.2]} 40.
Bb3 {[%clk 0:01:55.3]} 40... Bd6 {[%clk 0:00:31.1]} 41. Bd5 {[%clk 0:01:53.2]}
41... Be5 {[%clk 0:00:28]} 42. Bc4 {[%clk 0:01:43]} 42... Bf4 {[%clk 0:00:21.1]}
43. Bb3 {[%clk 0:01:41.5]} 43... Bd2 {[%clk 0:00:20.9]} 44. hxg4 {[%clk
0:01:39.8]} 44... hxg4 {[%clk 0:00:22.8]} 45. Kg3 {[%clk 0:01:39]} 45... Ke5
{[%clk 0:00:19.2]} 46. Bd5 {[%clk 0:01:37.7]} 46... f6 {[%clk 0:00:20]} 47. Bc6
{[%clk 0:01:37.9]} 47... Kd6 {[%clk 0:00:19.8]} 48. Kxg4 {[%clk 0:01:36.2]}
48... Bc3 {[%clk 0:00:20.5]} 49. Bd5 {[%clk 0:01:35.1]} 49... Kc7 {[%clk
0:00:21.6]} 50. Kh5 {[%clk 0:01:33.9]} 50... Be5 {[%clk 0:00:23.5]} 51. Kg6
{[%clk 0:01:33.5]} 51... Kb8 {[%clk 0:00:25.4]} 52. Kf7 {[%clk 0:01:30.6]} 52...
Kc7 {[%clk 0:00:26.6]} 53. Ke6 {[%clk 0:01:29.1]} 53... Bd4 {[%clk 0:00:28.1]}
54. Bc4 {[%clk 0:01:26.5]} 54... Be5 {[%clk 0:00:29.5]} 55. Be2 {[%clk
0:01:24.5]} 55... Ba1 {[%clk 0:00:31.4]} 1/2-1/2